Cogmind - Beta 15 @@@ ROGUE MODE // 2025.05.27 @ 02:08:48 Player: obl-vn Result: Destroyed by B-75 Beast with Magnetic Acceleration Cannon Performance ------------- Evolutions (4) 2000 Regions Visited (6) 1200 Robots Destroyed (3) 15 Value Destroyed (59) 59 Prototype IDs (1) 20 Alien Tech Used (0) 0 Bonus (1825) 1825 TOTAL SCORE: 5119 Bonus ------- Pacifist 1325 Entered DSFs 500 Cogmind --------- Core Integrity 0/850 Matter 207/300 Energy 35/100 System Corruption 5% Temperature Cool (0) Movement Core (50) Location -6/Factory Parts ------- > --- POWER (1) -------- (None) > --- PROPULSION (6) --- (None) > --- UTILITY (6) ------ (None) > --- WEAPON (2) ------- (None) > --- INVENTORY (5) ---- Micro Nuclear Core Improved Cesium-ion Thruster Improved Medium Armor Plating Peak State ------------ > --- POWER ------------ (None) > --- PROPULSION ------- Light Treads Light Treads Light Treads > --- UTILITY ---------- Hacking Suite Hacking Suite Hacking Suite Hacking Suite > --- WEAPON ----------- (None) > --- INVENTORY -------- Light Ion Engine Seismic Detector Improved Medium Armor Plating Improved Medium Armor Plating Grenade Launcher [Rating: 16] Favorites ----------- Power None Propulsion Light Treads Treads Light Treads Flight Unit Improved Cesium-ion Thruster Utility Hacking Suite Device Structural Scanner Hackware Hacking Suite Protection Improved Medium Armor Plating Weapon Improved Proton Missile Launcher Launcher Improved Proton Missile Launcher Build | -11 -10 -9 -8 -7 -7 -6 ------- Run | Yrd Mat Mat Mat Fac DSF Fac Slots Evolved 8 | . . 2 2 2 . 2 Power . | . . . . . . . Propulsion 4 | . . 2 1 . . 1 Utility 4 | . . . 1 2 . 1 Weapon . | . . . . . . . Parts Attached 15 | 2 1 . 1 1 4 6 Power . | . . . . . . . Engine . | . . . . . . . Core . | . . . . . . . Reactor . | . . . . . . . Propulsion 5 | 2 . . 1 . . 2 Treads 3 | 2 . . 1 . . . Leg . | . . . . . . . Wheel . | . . . . . . . Hover . | . . . . . . . Flight 2 | . . . . . . 2 Utility 8 | . 1 . . 1 4 2 Device 2 | . 1 . . 1 . . Storage . | . . . . . . . Processor . | . . . . . . . Hackware 4 | . . . . . 4 . Protection 2 | . . . . . . 2 Artifact . | . . . . . . . Weapon 2 | . . . . . . 2 Energy Gun . | . . . . . . . Energy Cannon . | . . . . . . . Ballistic Gun . | . . . . . . . Ballistic Cannon . | . . . . . . . Launcher 2 | . . . . . . 2 Special Weapon . | . . . . . . . Impact Weapon . | . . . . . . . Slashing Weapon . | . . . . . . . Piercing Weapon . | . . . . . . . Special Melee Weapon . | . . . . . . . Unidentified Prototypes 1 | . . . . . . 1 Parts Lost 8 | . . . 1 . . 7 Power . | . . . . . . . Propulsion 2 | . . . . . . 2 Utility 5 | . . . 1 . . 4 Weapon 1 | . . . . . . 1 Highest Loss Streak 4 | . . . 1 . . 4 To Critical Strikes . | . . . . . . . Average Backups 3 | . 1 3 4 4 4 3 Power . | . 1 1 1 1 . 1 Propulsion . | . . 1 . . . . Utility 1 | . . . 1 2 3 2 Weapon . | . . 1 1 1 1 . Tool/Special . | . . . . . . . Unused Backups 2 | . . . . . 1 1 Power 2 | . . . . . 1 1 Propulsion . | . . . . . . . Utility . | . . . . . . . Weapon . | . . . . . . . Tool/Special . | . . . . . . . Average Slot Usage (%) 30 | . 40 33 27 30 44 19 Treads 16 | . 28 22 21 23 21 2 Device 5 | . 12 11 5 7 . . Hackware 7 | . . . . . 22 13 Peak Build Rating 16 | 2 3 3 5 5 16 12 Average Rating 6 | 1 2 3 3 4 14 8 On Entrance 3 | . 2 3 3 4 4 11 Naked Turns 1 | . . . . . . 1 Heaviest Build 1 | . 1 1 1 1 . 1 Greatest Support 10 | 3 3 3 3 3 3 10 Greatest Overweight (x) . | . . . . . . . Average Overweight (x) . | . . . . . . . Largest Inventory Capacity 5 | 5 5 5 5 5 5 5 Average Capacity 5 | 5 5 5 5 5 5 5 Most Carried 5 | 2 3 3 5 5 5 5 Average Carried 3 | 1 2 3 4 4 4 3 Final Capacity 5 | 5 5 5 5 5 5 5 Final Carried 5 | 1 3 3 5 5 5 3 Class Distribution -------------------- 59% | Mutant 40% | Hacker-Mutant Dominant Class ---------------- Mutant | -10/Materials Mutant | -9/Materials Mutant | -8/Materials Mutant | -7/Factory Hacker-Mutant | -7/DSF Hacker-Mutant | -6/Factory Resources | -11 -10 -9 -8 -7 -7 -6 ----------- Run | Yrd Mat Mat Mat Fac DSF Fac Matter Collected 253 | 204 26 . . . . 23 Remotely . | . . . . . . . Salvage Created 33 | . . . . . . 33 Parts 4 | . . . . . . 4 Haulers Intercepted . | . . . . . . . Recyclers Shooed 1 | . . . . . . 1 Parts Field Recycled . | . . . . . . . Retrieved Matter . | . . . . . . . Parts Self-Destructed . | . . . . . . . Prevented . | . . . . . . . Kills | -11 -10 -9 -8 -7 -7 -6 ------- Run | Yrd Mat Mat Mat Fac DSF Fac Combat Hostiles Destroyed 2 | . . . . . . 2 AOE 2 | . . . . . . 2 Classes Destroyed 2 | . . . . . . 2 Builder 1 | . . . . . . 1 Swarmer 2 | . . . . . . 2 Best Kill Streak 2 | . . . . . . 2 Combat Bots Only 2 | . . . . . . 2 Max Kills in Single Turn 2 | . . . . . . 2 Gunslinging . | . . . . . . . Exploded 2 | . . . . . . 2 Melee . | . . . . . . . Uniques/NPCs Destroyed . | . . . . . . . Combat | -11 -10 -9 -8 -7 -7 -6 -------- Run | Yrd Mat Mat Mat Fac DSF Fac Hostile Shots Fired 142 | . . . 10 . 13 119 Missed 59 | . . . 4 . 6 49 Hits 83 | . . . 6 . 7 70 Melee 13 | . . . . . 5 8 Projectile 70 | . . . 6 . 2 62 AOE 3 | . . . . . 1 2 Critical Strikes 9 | . . . 2 . 3 4 Damage Taken 1495 | . . . 98 . 205 1192 Core 955 | . . . 15 . 75 865 Absorbed by Shields . | . . . . . . . Core Remaining (%) 97 | 100 100 100 97 . 89 . Volleys Fired 3 | . . . . . . 3 Largest 1 | . . . . . . 1 Hottest 43 | . . . . . . 43 Shots Fired 3 | . . . . . . 3 Gun . | . . . . . . . Cannon . | . . . . . . . Launcher 3 | . . . . . . 3 Special . | . . . . . . . Kinetic . | . . . . . . . Thermal . | . . . . . . . Explosive 2 | . . . . . . 2 Electromagnetic 1 | . . . . . . 1 Robot Hit Streak 1 | . . . . . . 1 Robot Miss Streak 1 | . . . . . . 1 Penetration Max . | . . . . . . . Secondary Targets . | . . . . . . . Shots Hit Robots 1 | . . . . . . 1 Core Hits 9 | . . . . . . 9 Critical Kills . | . . . . . . . Critical Parts Destroyed . | . . . . . . . Critical Strikes . | . . . . . . . Melee Attacks . | . . . . . . . Impact . | . . . . . . . Slashing . | . . . . . . . Piercing . | . . . . . . . Sneak Attacks . | . . . . . . . Combat Hostiles . | . . . . . . . Follow-up Attacks . | . . . . . . . Damage Inflicted 297 | . . . . . . 297 Guns . | . . . . . . . Cannons . | . . . . . . . Explosions 297 | . . . . . . 297 Melee . | . . . . . . . Ramming . | . . . . . . . Kinetic . | . . . . . . . Thermal 30 | . . . . . . 30 Explosive 169 | . . . . . . 169 Electromagnetic 98 | . . . . . . 98 Impact . | . . . . . . . Slashing . | . . . . . . . Piercing . | . . . . . . . Highest Corruption 5 | . . . . . . 5 Average Corruption 5 | . . . . . . 5 Corruption Purged . | . . . . . . . Corruption Blocked . | . . . . . . . Overload Shots . | . . . . . . . Overflow Damage 1 | . . . . . . 1 Projectiles . | . . . . . . . Explosions 1 | . . . . . . 1 Melee . | . . . . . . . Knockbacks . | . . . . . . . Impact . | . . . . . . . Kinetic . | . . . . . . . Secondary . | . . . . . . . Self-Inflicted Damage 60 | . . . . . . 60 Shots 2 | . . . . . . 2 Rammed . | . . . . . . . Targets Rammed . | . . . . . . . Kicked . | . . . . . . . Crushed . | . . . . . . . Highest Temperature 2 | . . . . . . 2 Average Temperature 2 | . . . . . . 2 Received Heat Transfer 168 | . . . 36 . . 132 Siege Activations . | . . . . . . . Martial Activations . | . . . . . . . Shielding Activations . | . . . . . . . Robots Disrupted . | . . . . . . . Combat Hostiles . | . . . . . . . Robots Corrupted . | . . . . . . . Combat Hostiles . | . . . . . . . Parts Fried 1 | . . . . . . 1 Impact Corruptions . | . . . . . . . Robots Melted . | . . . . . . . Combat Hostiles . | . . . . . . . Parts Melted . | . . . . . . . Heat Transferred 100 | . . . . . . 100 Parts Sabotaged . | . . . . . . . Parts Stolen . | . . . . . . . Parts Stripped . | . . . . . . . Power Chain Reactions 1 | . . . . . . 1 Alert | -11 -10 -9 -8 -7 -7 -6 ------- Run | Yrd Mat Mat Mat Fac DSF Fac Maximum Alert Level . | . . . . . . . Low Security (%) 100 | 100 100 100 100 100 100 100 Level 1 . | . . . . . . . Level 2 . | . . . . . . . Level 3 . | . . . . . . . Level 4 . | . . . . . . . Level 5 . | . . . . . . . High Security . | . . . . . . . Max Security . | . . . . . . . Peak Influence 130 | . 19 3 . . 15 130 Initial 7 | . . 3 . . . 7 Average 19 | . 4 1 . . 5 54 Influence Increases 259 | . 34 . . . 15 210 Destroy 0b10 Robot/C 40 | . . . . . . 40 Destroy 0b10 Robot/NC 5 | . . . . . . 5 Successful Hack 39 | . 19 . . . . 20 Destroy Structure 10 | . . . . . . 10 Partial Spotted 15 | . 15 . . . . . Lose Combat Pursuer 150 | . . . . . 15 135 Influence Decreases 139 | . 25 9 . . . 105 Entered New Map 14 | . . 6 . . . 8 Time Decay 68 | . 25 3 . . . 40 Lost Part 57 | . . . . . . 57 Squads Dispatched 4 | . . . . . 1 3 Investigation 1 | . . . . . . 1 Extermination . | . . . . . . . Reinforcement 3 | . . . . . 1 2 Assault . | . . . . . . . Garrison . | . . . . . . . Intercept . | . . . . . . . Searches Triggered . | . . . . . . . Construction Impeded 1 | . . . . . . 1 Haulers Reinforced . | . . . . . . . Active Scanning Responses . | . . . . . . . Cargo Convoy Interrupts . | . . . . . . . Stealth | -11 -10 -9 -8 -7 -7 -6 --------- Run | Yrd Mat Mat Mat Fac DSF Fac Distress Signals 2 | . . . 1 . . 1 Communications Jammed . | . . . . . . . Distress Signals . | . . . . . . . Times Spotted 34 | . 3 . 4 . 5 22 Peak Tracking Total 9 | . 3 . 4 . 4 9 Tactical Retreats 4 | . . . . . 1 3 Traps | -11 -10 -9 -8 -7 -7 -6 ------- Run | Yrd Mat Mat Mat Fac DSF Fac Traps Triggered . | . . . . . . . Indirectly . | . . . . . . . Trap Hack Attempts . | . . . . . . . Triggered . | . . . . . . . Disarmed . | . . . . . . . Reprogrammed . | . . . . . . . Reused . | . . . . . . . Traps Extracted . | . . . . . . . Installed . | . . . . . . . Triggered . | . . . . . . . Machines | -11 -10 -9 -8 -7 -7 -6 ---------- Run | Yrd Mat Mat Mat Fac DSF Fac Machines Disabled . | . . . . . . . Max in Single Turn . | . . . . . . . Machines Repaired . | . . . . . . . Machines Dismantled . | . . . . . . . Machines Sabotaged . | . . . . . . . Overloaded Fab Kills . | . . . . . . . Hacking | -11 -10 -9 -8 -7 -7 -6 --------- Run | Yrd Mat Mat Mat Fac DSF Fac Machines Accessed 8 | . 4 . . 1 . 3 Terminals 8 | . 4 . . 1 . 3 Fabricators . | . . . . . . . Repair Stations . | . . . . . . . Recycling Units . | . . . . . . . Scanalyzers . | . . . . . . . Garrison Access . | . . . . . . . Total Hacks 21 | . 12 . . 1 . 8 Successful 9 | . 3 . . 1 . 5 Failed 12 | . 9 . . . . 3 Catastrophic 1 | . 1 . . . . . Database Lockouts . | . . . . . . . Manual 16 | . 11 . . . . 5 Terminals 21 | . 12 . . 1 . 8 Fabricators . | . . . . . . . Repair Stations . | . . . . . . . Recycling Units . | . . . . . . . Scanalyzers . | . . . . . . . Garrison Access . | . . . . . . . Terminal Hacks 6 | . 2 . . 1 . 3 Open DSF 2 | . . . . 1 . 1 Branch Access Points 2 | . 1 . . . . 1 Zone Layout 2 | . 1 . . . . 1 Fabricator Hacks . | . . . . . . . Repair Station Hacks . | . . . . . . . Recycling Unit Hacks . | . . . . . . . Scanalyzer . | . . . . . . . Garrison Access Hacks . | . . . . . . . Unauthorized Hacks 3 | . 1 . . . . 2 Terminals 3 | . 1 . . . . 2 Botnet 3 | . 1 . . . . 2 Fabricators . | . . . . . . . Repair Stations . | . . . . . . . Recycling Units . | . . . . . . . Scanalyzers . | . . . . . . . Garrison Access . | . . . . . . . Data Cores Recovered . | . . . . . . . Used . | . . . . . . . Hacking Detections 6 | . 4 . . . . 2 Full Trace Events 4 | . 3 . . . . 1 Feedback Events . | . . . . . . . Feedback Blocked . | . . . . . . . Robot Schematics Acquired . | . . . . . . . Robots Built . | . . . . . . . Authchips . | . . . . . . . Time . | . . . . . . . Total Robot Build Rating . | . . . . . . . Part Schematics Acquired . | . . . . . . . Parts Built . | . . . . . . . Authchips . | . . . . . . . Time . | . . . . . . . Total Part Build Rating . | . . . . . . . Parts Repaired . | . . . . . . . Time . | . . . . . . . Parts Recycled . | . . . . . . . Recycled Matter . | . . . . . . . Retrieved Matter . | . . . . . . . Retrieved Components . | . . . . . . . Parts Scanalyzed . | . . . . . . . Part Schematics Acquired . | . . . . . . . Parts Damaged . | . . . . . . . Bothacking | -11 -10 -9 -8 -7 -7 -6 ------------ Run | Yrd Mat Mat Mat Fac DSF Fac Used RIF Installer . | . . . . . . . Robots Hacked . | . . . . . . . Non-combat . | . . . . . . . Combat . | . . . . . . . Robot Hacks Applied . | . . . . . . . Relay Couplers Released . | . . . . . . . Fabnet Peak Effective % . | . . . . . . . Robots Rewired . | . . . . . . . Allies Hacked . | . . . . . . . Hacks Repelled . | . . . . . . . Allies | -11 -10 -9 -8 -7 -7 -6 -------- Run | Yrd Mat Mat Mat Fac DSF Fac Total Allies . | . . . . . . . Largest Group . | . . . . . . . Highest-Rated Group . | . . . . . . . Highest-Rated Ally . | . . . . . . . Total Orders . | . . . . . . . Ally Attacks . | . . . . . . . Total Damage . | . . . . . . . Kills . | . . . . . . . Allies Corrupted . | . . . . . . . Allies Melted . | . . . . . . . Intel | -11 -10 -9 -8 -7 -7 -6 ------- Run | Yrd Mat Mat Mat Fac DSF Fac Active Infowar (turns) 170 | . 80 46 27 4 . 13 Structural 153 | . 80 46 27 . . . Seismic 17 | . . . . 4 . 13 Robot Analysis Total . | . . . . . . . Derelict Logs Recovered . | . . . . . . . Drone Launches . | . . . . . . . Drone Recoveries . | . . . . . . . Exploration | -11 -10 -9 -8 -7 -7 -6 ------------- Run | Yrd Mat Mat Mat Fac DSF Fac Turns Passed 407 | 24 84 46 64 5 50 134 Spaces Moved 756 | 38 160 92 119 5 85 257 Core 651 | 38 160 92 119 5 85 152 Treads . | . . . . . . . Legs . | . . . . . . . Wheels . | . . . . . . . Hover . | . . . . . . . Flight 105 | . . . . . . 105 Fastest Speed 32 | 50 50 50 50 50 50 32 Average Speed 47 | 50 50 50 50 50 50 43 Slowest Speed 50 | 50 50 50 50 50 50 50 Overloaded Moves . | . . . . . . . Propulsion Burnouts . | . . . . . . . Robots Hopped 6 | . . . . . . 6 Potential Cave-ins . | . . . . . . . Cave-ins Triggered . | . . . . . . . Exploration Rate (%) 30 | 3 45 17 14 . 92 12 Regions Visited 6 Branch Regions . Pre-discovered Areas . | . . . . . . . Known Exits Taken 1 | . . . . 1 . . Unknown Exits Taken 4 | 1 1 1 1 . . . Scrap Searched . | . . . . . . . Spaces Dug . | . . . . . . . Terrain Destroyed 9 | . . . . . . 9 Melee . | . . . . . . . Projectile . | . . . . . . . AOE 9 | . . . . . . 9 Terrain Rammed . | . . . . . . . Walls Destroyed . | . . . . . . . Machines Disabled . | . . . . . . . Actions | -11 -10 -9 -8 -7 -7 -6 --------- Run | Yrd Mat Mat Mat Fac DSF Fac Total 785 | 42 163 91 122 7 90 270 Wait 3 | . . . . . . 3 Move 740 | 37 159 91 118 5 84 246 Hop 5 | . . . . . . 5 Pick Up 15 | 3 3 . 3 . 1 5 Fast Attach 4 | . . . . . 4 . Attach 12 | 2 1 . 1 1 . 7 Detach 1 | . . . . 1 . . Swap . | . . . . . . . Drop 2 | . . . . . 1 1 Fire 3 | . . . . . . 3 Melee . | . . . . . . . Ram . | . . . . . . . Kick . | . . . . . . . Crush . | . . . . . . . Escape Stasis . | . . . . . . . Rewire . | . . . . . . . Trap . | . . . . . . . Miscellaneous . | . . . . . . . Route ------- -11/Scrapyard -10/Materials (discovered 2 exits: [*Mat] / *Min) -9/Materials (discovered 2 exits: [*Mat] / [*Min]) -8/Materials -7/Factory -7/DSF -6/Factory (discovered 4 exits: *Low x2 / Ext x2) History --------- Turn | Location | Event 7 | -11/Scrapyard | Discovered new exit (range 15) 25 | -11/Scrapyard | Entered Materials 50 | -10/Materials | Discovered new exit (range 16) 77 | -10/Materials | Identified exit to Mines 101 | -10/Materials | Discovered new exit (range 16) 109 | -10/Materials | Entered another Materials area 109 | -9/Materials | Evolved 2 slots: Propulsion x2 128 | -9/Materials | Discovered new exit (range 16) 148 | -9/Materials | Discovered new exit (range 16) 155 | -9/Materials | Entered another Materials area 155 | -8/Materials | Evolved 2 slots: Propulsion x1, Utility x1 211 | -8/Materials | Discovered new exit (range 16) 219 | -8/Materials | Entered Factory 219 | -7/Factory | Evolved 2 slots: Utility x2 223 | -7/Factory | Identified exit to DSF 224 | -7/Factory | Entered DSF 251 | -7/DSF | Additional patrols routed to DSF 267 | -7/DSF | Discovered new exit (range 15) 274 | -7/DSF | Entered Factory 274 | -6/Factory | Evolved 2 slots: Propulsion x1, Utility x1 292 | -6/Factory | Discovered new exit (range 11) 294 | -6/Factory | Identified exit to Lower Caves 294 | -6/Factory | Identified exit to Extension 345 | -6/Factory | Lost 3 parts (1n2u) 368 | -6/Factory | Core integrity fell below 50% 388 | -6/Factory | Core integrity fell below 20% 394 | -6/Factory | Spotted B-75 Beast 408 | -6/Factory | Destroyed by B-75 Beast with Magnetic Acceleration Cannon Last Messages --------------- 00387_ Terrain Scanner fried. 00387_ U-05 Engineer destroyed. 00387_ Chain reaction triggered in Corrupted Lgt. Ion Engine. 00387_ Destroyed Wheel. 00387_ ALERT: Construction progress impeded, dispatching reinforcements to local area. 00388_ Knocked back. 00389_ Acquired 12 matter. 00390_ Dropped Imp. Proton Missile Launcher. 00391_ The unstable cave ceiling collapses. 00394_ Slug penetrates Wall. 00394_ W-25 Informer sends out distress signal. 00396_ Knocked back. 00401_ Imp. Medium Armor Plating severed. 00402_ Acquired Imp. Medium Armor Plating. 00403_ Imp. Medium Armor Plating severed. 00403_ K-01 Serf collects debris. 00407_ Imp. Cesium-ion Thruster severed. 00407_ Acquired Imp. Cesium-ion Thruster. Map ----- +----------------------------------------------------+ | ?????????????????????????????????????????????????? | | ?????????????????????????????????????????????????? | | ?????????????????????????????????????????????????? | | ?????????????????????????????????????????????????? | | ?????????????????????????????????????????????????? | | ???????????????????????????????????????????????? | | ???????????????????????????????????????????????? | | #????????????????????????????????????????????????? | | #????????????????????????????????????????????????? | | #????????????????????????????????????????????????? | | #????????????????????????????????????????????????? | | #???????????????????????????? ???????????????????? | | ??????????????????????####### ???????????????????? | | ?????????????????????? ???????????????????? | | ??????????????????????? ???????????????????? | | ??????????????????????? ?????? ???????????? | | ??????????????????????? ? ? ???????????? | | ???????????????????? """ ????????????? | | [ #???????????????????? ""F"" ????????????? | | ####???????????????????? "" "" " "????????????? | | #??????????????????? " "????????????? | | #???????????????????# " "????????????? | | ????????????????????????# " "????????????? | | ?????????????????????# " " ???????????? | | #???????????????????# " " ???????????? | | #???????????????????#@ !! " " ???????????? | | #??????????????????##; !! " " ???????????? | | ????????????????????# c ! " " " " ???????? | | ??????????????????????# c ??????? | | #??????????????????###BB ??????? | | #????????????????????#BB#############????????? | | #????????????????????# ;##???????????????????? | | #####????????????????????#c; #???????????????????? | | ?????????????????????????# ;##???????????????????? | | ????????????????######?### ;##???????????????????? | | ????????????????# !! # w! #???????????????????? | | ????????????????# !! # #???????????????????? | | ????????????????# ! + " #???????????????????? | | ????????????????# # % #???????????????????? | | ????????????????# # k #???????????????????? | | ????????????????# ?## #???????????????????? | | ??#?????????????######??# "#???????????????????? | | ??????????????????????# %"#???????????????????? | | ????????????????????????# =##???????????????????? | | ????????????????????????# #?????????#"?????????? | | ????????????????????????# ########"""""####????? | | ????????????????????????# ## """ #????? | | ????????????????????????# ## ""F #????? | | ########????????????????# " # " #????? | | #??????????????### " # #????? | +----------------------------------------------------+ Best States ------------- Heat Dissipation 37 Energy Generation 5 Energy Capacity 100 Matter Stores 300 Matter Capacity 300 Sight Range 16 Terrain Scan Density 10 Evasion (%) 63 Recoil Reduction 1 Offensive Hacking 40 Item Schematics ----------------- None Robot Schematics ------------------ None Fabricated ------------ Nothing Repaired ---------- Nothing Alien Tech Used ----------------- None Achievements -------------- None Challenges ------------ None Game ------ Seed BiometalContainmentShredder Manual? 0 Play Time 00:14:09 Cumulative 51.2 hours Start 2025.05.27 @ 01:55:48 End 2025.05.27 @ 02:08:48 Sessions 1 Manual Loads 0 Difficulty Rogue Special Mode None Game No. 32 Rogue 32 Adventurer 0 Explorer 0 Win Type - Total 1 Types 0/0/0/1/0/0/0/0/0/0 Lore% 20 Gallery% 33 Achievement% 38 Wizard Run 0 Options --------- Layout 1 ASCII 0 Keyboard 0 Movement Mouse Keybinds 0 Fullscreen 1 Font 32/SmallcapsGlow Map View 50x35 Zoom Use 0% Tactical HUD 1 Map Filters NONE Filters NONE Steam 1 RUN: 9a0e5b06-7b79-4b49-a5f8-fdffb1cb1ef6